Cogmind - Beta 15 @@@ ROGUE MODE // 2025.08.26 @ 08:50:37 Player: shapeshifter Result: Destroyed by G-67 Veteran with Plasma Rifle Performance ------------- Evolutions (6) 3000 Regions Visited (23) 4600 Robots Destroyed (117) 585 Value Destroyed (5201) 5201 Prototype IDs (60) 1200 Alien Tech Used (2) 400 Bonus (4088) 4088 TOTAL SCORE: 19074 Bonus ------- Follower Combat Kills 2469 Network Hubs Disabled 200 Aligned with FarCom 300 Met Zhirov 300 Built Enhanced Grunts 300 A7 Reached Mainframe 300 Met R17 at Cetus 500 Friendly Fire -281 Cogmind --------- Core Integrity 0/1150 Matter 229/300 Energy 74/100 System Corruption 8% Temperature Cool (12) Movement Core (450) Ox8 Location -4/Upper Caves Parts ------- > --- POWER (3) -------- (None) > --- PROPULSION (4) --- (None) > --- UTILITY (9) ------ Large Storage Unit Enhanced Optical Array Advanced Signal Interpreter 0b10 Decoder Chip [Scout] Advanced Target Analyzer Advanced Particle Charger > --- WEAPON (3) ------- (None) > --- INVENTORY (15) --- Fission Core Neutrino Core Antimatter Reactor Quantum Reactor Improved Reaction Control System Improved Remote Datajack Peak State ------------ > --- POWER ------------ Quantum Reactor Quantum Reactor Quantum Reactor > --- PROPULSION ------- Centrium Heavy Treads Centrium Heavy Treads > --- UTILITY ---------- Lightpack 2.0 Improved Phase Shifter Centrium Medium Armor Plating Centrium Medium Armor Plating Force Field > --- WEAPON ----------- Advanced KE Penetrator Advanced KE Penetrator Advanced KE Penetrator > --- INVENTORY -------- Quantum Reactor Quantum Reactor Centrium Heavy Treads Centrium Heavy Treads Centrium Heavy Treads Power Amplifier Improved Heat Sink Improved Heat Sink Improved Sensor Array Improved Signal Interpreter Advanced Particle Charger Centrium Medium Armor Plating Centrium Medium Armor Plating Centrium Medium Armor Plating Focal Shield Experimental Thermal Shield Improved Hacking Suite Improved Hacking Suite Improved System Shield Improved System Shield Improved System Shield Heavy Laser Wave Gun Advanced Variable Charge Gun Advanced Variable Charge Gun Advanced Variable Charge Gun Advanced Variable Charge Gun Advanced Variable Charge Gun Neutron Cannon Advanced KE Penetrator Advanced KE Penetrator Advanced Datajack Remote Datajack Phasing Sabre [Rating: 172] Favorites ----------- Power Quantum Reactor Engine Light Ion Engine Power Core Light Nuclear Core Reactor Quantum Reactor Propulsion Centrium Heavy Treads Treads Centrium Heavy Treads Leg Improved Carbon-fiber Leg Wheel Compact Wheel Hover Unit Aerolev Unit Flight Unit Improved VTOL Module Utility Lightpack 2.0 Device Force Field Storage Lightpack 2.0 Processor Improved Signal Interpreter Hackware Improved Hacking Suite Protection Centrium Medium Armor Plating Weapon Advanced KE Penetrator Energy Gun Advanced Variable Charge Gun Energy Cannon Neutron Cannon Ballistic Gun Advanced KE Penetrator Special Weapon CPS Tube Impact Weapon Flail Slashing Weapon Katana Build | -11 -10 -10 -10 -9 -8 -8 -8 -8 -6 -6 -6 -6 -6 -5 -5 -5 -5 -4 -4 -4 -4 -4 -4 ------- Run | Yrd Mat Min Exi Min Mat Sto Rec Scr Fac Ext Cet Arc Hub Fac Upp Upp Zhi Pro Fac Was Fac Upp Upp Slots Evolved 12 | . . . . . 4 . . . 4 . . . . 2 . . . . 2 . . . . Power 2 | . . . . . . . . . 1 . . . . 1 . . . . . . . . . Propulsion 2 | . . . . . 1 . . . 1 . . . . . . . . . . . . . . Utility 7 | . . . . . 2 . . . 2 . . . . 1 . . . . 2 . . . . Weapon 1 | . . . . . 1 . . . . . . . . . . . . . . . . . . Parts Attached 145 | 7 4 2 1 4 20 12 3 2 9 16 12 6 1 4 2 2 4 2 7 . 8 1 16 Power 17 | 1 1 . . 2 2 2 . . 2 1 2 . . 1 . . 1 . 1 . . . 1 Engine 10 | 1 1 . . 2 2 2 . . 1 1 . . . . . . . . . . . . . Core 1 | . . . . . . . . . 1 . . . . . . . . . . . . . . Reactor 6 | . . . . . . . . . . . 2 . . 1 . . 1 . 1 . . . 1 Propulsion 31 | 2 2 1 . 2 4 4 2 . 2 5 2 1 . . . . 1 . 1 . . 1 1 Treads 8 | 2 . 1 . . . . . . . . 2 1 . . . . . . 1 . . . 1 Leg 10 | . . . . 2 3 2 . . . 1 . . . . . . 1 . . . . 1 . Wheel 2 | . 2 . . . . . . . . . . . . . . . . . . . . . . Hover 8 | . . . . . . 1 2 . 2 3 . . . . . . . . . . . . . Flight 3 | . . . . . 1 1 . . . 1 . . . . . . . . . . . . . Utility 59 | 2 1 . 1 . 6 2 1 . 4 7 3 3 1 3 2 1 2 1 4 . 7 . 8 Device 25 | 1 . . . . 2 . . . 1 1 2 2 . 1 2 1 1 1 4 . 2 . 4 Storage 6 | 1 1 . 1 . . . 1 . . . . . . . . . 1 . . . . . 1 Processor 11 | . . . . . 3 . . . . 2 . . . 1 . . . . . . 2 . 3 Hackware 4 | . . . . . . . . . 1 . . . 1 . . . . . . . 2 . . Protection 13 | . . . . . 1 2 . . 2 4 1 1 . 1 . . . . . . 1 . . Artifact . | . . . . . . . . . . . . . . . . . . . . . . . . Weapon 38 | 2 . 1 . . 8 4 . 2 1 3 5 2 . . . 1 . 1 1 . 1 . 6 Energy Gun 14 | . . . . . 4 1 . . . 1 1 1 . . . . . . 1 . 1 . 4 Energy Cannon 1 | . . . . . . . . . . . . . . . . 1 . . . . . . . Ballistic Gun 11 | 2 . 1 . . 2 1 . . . . 2 1 . . . . . 1 . . . . 1 Ballistic Cannon . | . . . . . . . . . . . . . . . . . . . . . . . . Launcher . | . . . . . . . . . . . . . . . . . . . . . . . . Special Weapon 2 | . . . . . . . . . . . 2 . . . . . . . . . . . . Impact Weapon 2 | . . . . . . 2 . . . . . . . . . . . . . . . . . Slashing Weapon 8 | . . . . . 2 . . 2 1 2 . . . . . . . . . . . . 1 Piercing Weapon . | . . . . . . . . . . . . . . . . . . . . . . . . Special Melee Weapon . | . . . . . . . . . . . . . . . . . . . . . . . . Unidentified Prototypes 21 | . . . . . 3 3 . . . 1 5 . . . . 1 5 . 1 . 1 . 1 Corrupted Parts 2 | . . . . . . . . . . . . 2 . . . . . . . . . . . System Corruption 5 | . . . . . . . . . . . . 5 . . . . . . . . . . . Parts Lost 61 | . 1 1 . . 3 2 . . 4 14 . . . . 1 . . 3 11 3 . 4 14 Power 12 | . . . . . 2 . . . 2 2 . . . . . . . 1 1 1 . 1 2 Propulsion 13 | . 1 . . . . 1 . . 1 6 . . . . . . . . 2 . . 1 1 Utility 21 | . . . . . . 1 . . 1 4 . . . . 1 . . 1 5 1 . 1 6 Weapon 15 | . . 1 . . 1 . . . . 2 . . . . . . . 1 3 1 . 1 5 Highest Loss Streak 12 | . 1 1 . . 2 2 . . 4 6 . . . . 1 . . 3 6 3 . 4 12 To Critical Strikes 1 | . . . . . . . . . . . . . . . . . . . . . . 1 . Average Backups 23 | 2 5 7 6 11 12 11 13 21 30 27 33 35 36 36 36 35 33 34 34 31 24 20 12 Power 2 | . . 1 1 1 1 . 1 1 1 1 1 3 3 2 2 2 2 3 3 4 5 4 4 Propulsion 2 | 1 2 1 1 1 1 2 5 2 3 2 1 2 3 3 3 3 3 3 2 1 1 . . Utility 11 | . 1 4 4 6 7 6 3 13 18 16 19 16 17 18 18 18 15 15 17 17 12 11 4 Weapon 5 | . . . . 1 2 1 1 2 3 4 7 10 10 11 11 10 10 9 7 6 4 3 2 Tool/Special . | . . . . . . . . . . . . . . . . . . . . . . . . Unused Backups 86 | 1 . . . 3 14 3 3 3 7 4 15 11 2 . . 4 1 . 4 . . 3 8 Power 11 | . . . . 1 1 . . . . 1 1 1 . . . . . . . . . 1 5 Propulsion 6 | . . . . . 1 . 1 . . 1 1 1 . . . . . . 1 . . . . Utility 50 | . . . . 2 10 3 . 3 6 1 9 7 1 . . 3 1 . 1 . . 1 2 Weapon 12 | 1 . . . . 2 . 1 . . 1 2 2 . . . 1 . . 1 . . 1 . Tool/Special 7 | . . . . . . . 1 . 1 . 2 . 1 . . . . . 1 . . . 1 Average Slot Usage (%) 77 | . 98 92 100 100 93 93 88 76 76 55 63 73 73 75 76 76 75 73 69 43 58 62 77 Engine 4 | . 14 14 14 14 8 9 9 9 10 1 . . . . . . . . . . . . . Reactor 6 | . . . . . . . . . . . 10 13 13 17 17 17 17 14 9 8 5 5 4 Treads 6 | . 21 7 14 7 . . . . . . 7 13 13 11 11 11 11 11 8 5 5 5 9 Leg 5 | . . . . 20 25 23 15 . . . . . . . . . . . . . . 2 4 Hover 2 | . . . . . . . 3 27 25 15 . . . . . . . . . . . . . Device 10 | . 14 14 14 14 11 11 7 . 5 2 4 13 9 11 11 11 10 11 14 7 4 5 19 Storage 8 | . 14 14 14 14 9 9 9 9 6 6 6 6 6 5 5 5 5 5 9 10 10 10 9 Processor 4 | . . . . . 9 9 7 . . 3 7 . . 4 5 5 5 5 3 . 5 5 6 Hackware 1 | . . . . . . . . . 3 2 . . 2 . . . . . . . 8 10 1 Protection 4 | . . . . . 2 6 8 9 5 3 6 5 6 5 5 5 4 5 5 2 4 5 4 Energy Gun 2 | . . . . . 6 1 . . . . 1 3 . . . . . . . 2 14 12 6 Ballistic Gun 9 | . 28 28 28 28 6 . . . . . 10 16 20 17 17 16 17 16 10 2 . . 4 Impact Weapon 1 | . . . . . . 9 18 8 . . . . . . . . . . . . . . . Slashing Weapon 4 | . . . . . 13 13 9 13 14 14 1 . . . . . . . 2 . . . 4 Peak Build Rating 172 | 7 8 7 10 19 44 42 57 66 84 82 153 156 156 172 168 165 168 164 170 137 137 134 130 Average Rating 97 | 4 7 6 7 16 37 38 36 61 77 67 122 154 154 168 164 163 161 159 159 117 133 130 110 On Entrance 89 | . 7 7 7 10 19 36 34 57 65 79 72 153 155 155 168 165 162 164 156 133 93 133 128 Naked Turns . | . . . . . . . . . . . . . . . . . . . . . . . . Heaviest Build 106 | 14 47 47 47 31 44 44 36 20 27 27 76 79 79 106 99 98 98 98 77 70 47 43 72 Greatest Support 160 | 40 40 16 40 40 51 54 36 24 32 37 160 160 160 160 160 160 160 160 160 80 80 80 27 Greatest Overweight (x) 2 | . 2 2 2 1 . 1 . . . 1 . . . . . . . . . . . 1 2 Average Overweight (x) . | . . 2 . . . . . . . . . . . . . . . . . . . . 1 Largest Inventory Capacity 40 | 8 20 20 20 15 15 15 40 40 40 40 40 40 40 40 40 40 40 40 40 40 40 40 40 Average Capacity 30 | 7 10 20 12 15 15 15 18 40 40 40 40 40 40 40 40 40 40 40 40 40 40 40 15 Most Carried 40 | 5 8 8 9 15 15 15 15 29 37 34 40 40 40 40 40 40 40 38 40 35 34 26 21 Average Carried 25 | 2 5 6 6 13 14 13 14 22 30 27 34 38 39 39 39 38 36 37 36 34 27 23 14 Final Capacity 40 | 8 20 20 15 15 15 15 40 40 40 40 40 40 40 40 40 40 40 40 40 40 40 40 15 Final Carried 40 | 4 8 6 9 15 14 15 15 27 29 33 37 38 38 40 39 36 38 36 31 35 26 21 6 Class Distribution -------------------- 21% | Scavenger-Tank 15% | Hauler-Mutant 15% | Mutant 9% | Gladiator 8% | Scavenger-Mutant 7% | Hauler-Tank 7% | Commander-Tank 6% | Hauler-Gladiator 3% | Commander-Mutant 3% | Commander-Gladiator Dominant Class ---------------- Mutant | -10/Materials Mutant | -10/Mines Mutant | -10/Exiles Mutant | -9/Mines Gladiator | -8/Materials Commander-Gladiator | -8/Storage Gladiator | -8/Recycling Hauler-Mutant | -8/Scraptown Hauler-Gladiator | -6/Factory Commander-Mutant | -6/Extension Commander-Tank | -6/Cetus Commander-Tank | -6/Archives Hauler-Tank | -6/Hub_04(d) Scavenger-Tank | -5/Factory Scavenger-Tank | -5/Upper Caves Scavenger-Tank | -5/Upper Caves Scavenger-Tank | -5/Zhirov Scavenger-Tank | -4/Proximity Caves Hauler-Mutant | -4/Factory Hauler-Tank | -4/Waste Hauler-Tank | -4/Factory Hauler-Mutant | -4/Upper Caves Scavenger-Mutant | -4/Upper Caves Resources | -11 -10 -10 -10 -9 -8 -8 -8 -8 -6 -6 -6 -6 -6 -5 -5 -5 -5 -4 -4 -4 -4 -4 -4 ----------- Run | Yrd Mat Min Exi Min Mat Sto Rec Scr Fac Ext Cet Arc Hub Fac Upp Upp Zhi Pro Fac Was Fac Upp Upp Matter Collected 3891 | 274 134 168 . 185 271 130 15 114 70 169 194 292 87 . 199 82 . 557 447 . . 348 155 Remotely . | . . . . . . . . . . . . . . . . . . . . . . . . Salvage Created 5887 | 77 302 34 . 49 688 468 111 . 415 481 36 325 . . 316 320 . 582 1053 . . 440 190 Parts 304 | 7 16 4 . 3 30 18 8 . 31 18 1 31 . . 12 15 . 28 61 . . 13 8 Haulers Intercepted 8 | . 1 . . . 3 3 . . . . . . . . . . . . 1 . . . . Recyclers Shooed 4 | 1 . . . . . . . . . . . . . . . . . . 3 . . . . Parts Field Recycled . | . . . . . . . . . . . . . . . . . . . . . . . . Retrieved Matter . | . . . . . . . . . . . . . . . . . . . . . . . . Parts Self-Destructed 68 | . . . . . . . . . . . . . . . 5 15 . 28 . . . 12 8 Prevented . | . . . . . . . . . . . . . . . . . . . . . . . . Kills | -11 -10 -10 -10 -9 -8 -8 -8 -8 -6 -6 -6 -6 -6 -5 -5 -5 -5 -4 -4 -4 -4 -4 -4 ------- Run | Yrd Mat Min Exi Min Mat Sto Rec Scr Fac Ext Cet Arc Hub Fac Upp Upp Zhi Pro Fac Was Fac Upp Upp Combat Hostiles Destroyed 84 | . 6 2 . 1 9 4 2 . 10 5 . 1 . . 5 5 . 8 14 . . 7 5 Melee 30 | . . . . . 9 4 2 . 10 5 . . . . . . . . . . . . . Guns 52 | . 6 2 . 1 . . . . . . . 1 . . 5 5 . 8 12 . . 7 5 Cannons 1 | . . . . . . . . . . . . . . . . . . . 1 . . . . Classes Destroyed 16 | 1 3 1 . 1 2 3 . . 2 . . 1 . . . . . 2 . . . . . Builder 4 | . . . . . . 2 . . . . . . . . . . . . 2 . . . . Tunneler 3 | 3 . . . . . . . . . . . . . . . . . . . . . . . Hauler 8 | . 1 . . . 3 3 . . . . . . . . . . . . 1 . . . . Recycler 1 | . . . . . . 1 . . . . . . . . . . . . . . . . . Operator 7 | . . . . . . . . . . . . 7 . . . . . . . . . . . Watcher 7 | . 1 . . . 1 . . . 2 1 1 . . . . . . . 1 . . . . Swarmer 11 | . . 2 . . . . . . 3 . . . . . . . . . . . . 2 4 Cutter 3 | . . . . . . . . . 3 . . . . . . . . . . . . . . Grunt 25 | . 6 . . . 4 2 . . 2 2 . . . . 2 2 . 3 2 . . . . Brawler 3 | . . . . . . . . . . . . . . . . . . 1 . . . 1 1 Duelist 3 | . . . . 1 . 1 . . . . . . . . . . . . . . . 1 . Sentry 11 | . . . . . . 1 2 . 1 3 . 1 . . . 1 . . 1 . . 1 . Specialist 4 | . . . . . 4 . . . . . . . . . . . . . . . . . . Hunter 7 | . . . . . 1 . . . . . . . . . . . . 2 2 . . 2 . Programmer 13 | . . . . . . . . . 1 . . . . . . 2 . 1 9 . . . . Behemoth 1 | . . . . . . . . . . . . . . . . . . 1 . . . . . Thug 4 | . . . . . . . . . . 1 . . . . 3 . . . . . . . . Butcher 1 | . . . . . . . . . . 1 . . . . . . . . . . . . . Guerrilla 1 | . . . . . . . . . . 1 . . . . . . . . . . . . . Best Kill Streak 4 | 2 3 2 . 1 2 3 1 . 4 1 1 2 . . 3 3 . 4 4 . . 4 3 Combat Bots Only 4 | . 3 2 . 1 2 3 1 . 4 1 . 1 . . 3 3 . 4 4 . . 4 3 Max Kills in Single Turn 3 | 1 1 1 . 1 1 1 1 . 1 3 1 2 . . 1 2 . 2 1 . . 1 2 Gunslinging 1 | . . . . . . . . . . . . . . . . 1 . . . . . . 1 Exploded . | . . . . . . . . . . . . . . . . . . . . . . . . Melee 1 | . . . . . 1 1 1 . 1 1 . . . . . . . . . . . . . Uniques/NPCs Destroyed . | . . . . . . . . . . . . . . . . . . . . . . . . Combat | -11 -10 -10 -10 -9 -8 -8 -8 -8 -6 -6 -6 -6 -6 -5 -5 -5 -5 -4 -4 -4 -4 -4 -4 -------- Run | Yrd Mat Min Exi Min Mat Sto Rec Scr Fac Ext Cet Arc Hub Fac Upp Upp Zhi Pro Fac Was Fac Upp Upp Hostile Shots Fired 980 | . 44 40 . 4 66 33 2 . 64 180 26 4 28 . 16 21 . 102 108 4 18 93 127 Missed 291 | . 12 20 . . 11 10 . . 14 66 7 1 12 . 2 8 . 23 39 . 12 21 33 Hits 689 | . 32 20 . 4 55 23 2 . 50 114 19 3 16 . 14 13 . 79 69 4 6 72 94 Melee 45 | . . . . 4 2 4 . . 9 . . . . . . . . . . 4 . 1 21 Projectile 644 | . 32 20 . . 53 19 2 . 41 114 19 3 16 . 14 13 . 79 69 . 6 71 73 AOE 2 | . . . . . . . . . 2 . . . . . . . . . . . . . . Critical Strikes 39 | . . 1 . . 5 2 . . 2 1 5 . . . 2 1 . 3 4 1 . 3 9 Part Disruptions 1 | . . . . . . . . . . . . . . . . . . . 1 . . . . Damage Taken 12787 | . 442 156 . 123 1056 375 30 . 1045 1247 342 46 192 . 190 133 . 1960 1562 151 190 1510 2037 Core 2240 | . 56 43 . . 202 . 14 . 151 252 15 13 21 . 20 12 . 366 124 37 5 256 653 Absorbed by Shields 1532 | . . . . . . . . . . 52 265 47 201 . 102 139 . 478 . . . . 248 Reduced by Siege Mode 186 | . . . . . . . . . . . . . . . . 6 . 104 . . . 76 . Ignored by Resistances 137 | . . . . . . . . . . . . . . . . . . . 22 53 41 . 21 Core Remaining (%) 65 | 100 . . . 60 . . . 60 . . . . 46 . . . . 60 . . . . . Volleys Fired 250 | 5 23 13 . 5 5 1 . . . 7 8 23 5 1 11 6 . 38 52 1 3 22 21 Largest 3 | 2 2 2 . 2 2 1 . . . 1 2 3 3 3 3 3 . 3 3 1 3 3 2 Hottest 310 | 40 40 40 . 40 73 61 . . . 75 240 310 105 105 105 105 . 105 205 240 240 240 160 Shots Fired 551 | 10 46 25 . 10 8 1 . . . 7 11 62 15 3 33 18 . 104 111 2 10 45 30 Gun 542 | 10 46 25 . 10 8 1 . . . 7 7 62 15 3 33 18 . 104 106 2 10 45 30 Cannon 5 | . . . . . . . . . . . . . . . . . . . 5 . . . . Launcher . | . . . . . . . . . . . . . . . . . . . . . . . . Special 4 | . . . . . . . . . . . 4 . . . . . . . . . . . . Kinetic 434 | 10 46 25 . 10 4 . . . . . 6 58 15 3 33 18 . 104 94 1 . . 7 Thermal 108 | . . . . . . 1 . . . 7 1 4 . . . . . . 17 1 10 45 22 Explosive . | . . . . . . . . . . . . . . . . . . . . . . . . Electromagnetic 5 | . . . . . 4 . . . . . . . . . . . . . . . . . 1 Robot Hit Streak 20 | 8 10 7 . 5 3 . . . . . 6 6 9 . 11 10 . 14 20 1 5 7 7 Robot Miss Streak 7 | . 2 7 . 2 3 1 . . . . 1 3 3 . 2 2 . 3 3 1 1 4 4 Penetration Max 2 | . . . . . . . . . . . . 1 . . 1 . . 1 1 . . . 2 Secondary Targets 10 | . 1 2 . . . . . . . . . . . . 1 1 . 1 . . . 2 2 Max Gunslinging Chain 1 | . 1 1 . . . . . . . . . . . . 1 1 . 1 . . . 1 1 Shots Hit Robots 477 | 8 33 9 . 8 53 24 4 . 24 33 8 36 9 . 19 13 . 76 67 1 7 28 17 Core Hits 215 | 3 19 3 . 3 14 9 2 . 14 15 2 16 3 . 11 7 . 20 48 . 2 14 10 Critical Kills 22 | . . . . . . . . . . . . 4 . . . 4 . 5 8 . . . 1 Critical Parts Destroyed 22 | . . . . . . . . . . . . 4 2 . 1 1 . 4 9 . . . 1 Critical Strikes 80 | . . . . . 10 5 . . 5 5 . 8 2 . 1 5 . 19 17 . . . 3 Destroy 55 | . . . . . . . . . . . . 8 2 . 1 5 . 19 17 . . . 3 Sever 25 | . . . . . 10 5 . . 5 5 . . . . . . . . . . . . . Melee Attacks 264 | . . . . . 71 52 6 . 70 50 . . . . . . . . 12 . . . 3 Impact 10 | . . . . . . 8 2 . . . . . . . . . . . . . . . . Slashing 254 | . . . . . 71 44 4 . 70 50 . . . . . . . . 12 . . . 3 Piercing . | . . . . . . . . . . . . . . . . . . . . . . . . Sneak Attacks 22 | . . . . . 9 5 . . 4 2 . . . . . . . . 2 . . . . Combat Hostiles 7 | . . . . . 4 . . . 2 1 . . . . . . . . . . . . . Follow-up Attacks 31 | . . . . . 4 3 1 . 13 10 . . . . . . . . . . . . . Damage Inflicted 15189 | 80 336 108 . 75 2151 961 121 . 1141 1388 106 1146 155 . 787 388 . 2252 2536 50 178 831 399 Guns 8857 | 80 336 108 . 75 60 . . . . . 106 1146 142 . 787 388 . 2252 1978 50 178 831 340 Cannons 148 | . . . . . . . . . . . . . . . . . . . 148 . . . . Explosions 501 | . . . . . . . . . . 210 . . 13 . . . . . 278 . . . . Melee 5683 | . . . . . 2091 961 121 . 1141 1178 . . . . . . . . 132 . . . 59 Ramming . | . . . . . . . . . . . . . . . . . . . . . . . . Kinetic 7149 | 80 336 108 . 75 49 . . . . . 106 1124 142 . 787 388 . 2252 1648 . . . 54 Thermal 2037 | . . . . . . . . . . 210 . 22 . . . . . . 478 50 178 831 268 Explosive . | . . . . . . . . . . . . . . . . . . . . . . . . Electromagnetic 320 | . . . . . 11 . . . . . . . 13 . . . . . 278 . . . 18 Impact 22 | . . . . . . . 22 . . . . . . . . . . . . . . . . Slashing 5661 | . . . . . 2091 961 99 . 1141 1178 . . . . . . . . 132 . . . 59 Piercing . | . . . . . . . . . . . . . . . . . . . . . . . . Highest Corruption 14 | . . . . 1 . 2 2 . . . . 4 1 . . . . 4 14 14 14 14 14 Average Corruption 7 | . . . . 1 . 2 2 . . . . 2 1 . . . . 3 3 14 14 14 9 Corruption Purged 11 | . . . . . . . . . . . . 5 . . . . . . . . . . 6 Corruption Blocked . | . . . . . . . . . . . . . . . . . . . . . . . . Effects 141 | . . . . 1 . 1 12 . . . . . 2 . . . . 16 19 7 5 35 43 Message Errors 30 | . . . . . . . 5 . . . . . . . . . . 3 2 2 1 11 6 Matter Fused 32 | . . . . 1 . . 4 . . . . . 1 . . . . 2 4 1 2 9 8 Heat Flow Errors 22 | . . . . . . 1 3 . . . . . . . . . . 3 3 . . 7 5 Energy Discharges 17 | . . . . . . . . . . . . . 1 . . . . 4 3 1 1 3 4 Parts Fused 1 | . . . . . . . . . . . . . . . . . . . . . . . 1 Data Loss (minor) 19 | . . . . . . . . . . . . . . . . . . 1 1 1 . 4 12 Data Loss (major) 9 | . . . . . . . . . . . . . . . . . . 2 2 . . 1 4 Misfires 4 | . . . . . . . . . . . . . . . . . . . . 1 1 . 2 Alerts 2 | . . . . . . . . . . . . . . . . . . . 2 . . . . Misdirections 1 | . . . . . . . . . . . . . . . . . . . . 1 . . . Weapon Failures 4 | . . . . . . . . . . . . . . . . . . 1 2 . . . 1 Overload Shots 3 | . . . . . . . . . . . 1 1 . . . . . . . 1 . . . Overflow Damage 301 | . . . . . 88 86 . . 40 53 . . . . . . . . 34 . . . . Projectiles . | . . . . . . . . . . . . . . . . . . . . . . . . Explosions . | . . . . . . . . . . . . . . . . . . . . . . . . Melee 301 | . . . . . 88 86 . . 40 53 . . . . . . . . 34 . . . . Knockbacks . | . . . . . . . . . . . . . . . . . . . . . . . . Impact . | . . . . . . . . . . . . . . . . . . . . . . . . Kinetic . | . . . . . . . . . . . . . . . . . . . . . . . . Secondary . | . . . . . . . . . . . . . . . . . . . . . . . . Self-Inflicted Damage 102 | . . . . . . . . . . . . . 102 . . . . . . . . . . Shots 1 | . . . . . . . . . . . . . 1 . . . . . . . . . . Rammed . | . . . . . . . . . . . . . . . . . . . . . . . . Targets Rammed . | . . . . . . . . . . . . . . . . . . . . . . . . Kicked . | . . . . . . . . . . . . . . . . . . . . . . . . Crushed . | . . . . . . . . . . . . . . . . . . . . . . . . Highest Temperature 692 | . 24 . . . 250 198 264 . 4 450 210 369 120 81 460 245 . 646 188 168 288 692 512 Average Temperature 130 | . 10 . . . 64 86 125 . 4 116 71 96 41 33 152 116 . 156 83 99 113 210 171 Received Heat Transfer 2203 | . 249 . . . 288 54 9 . 165 237 42 4 6 . 93 45 . 547 112 . . 108 244 Effects 44 | . . . . . . . . . . 1 . 1 . . 2 . . 7 . . . 26 7 Shutdowns 12 | . . . . . . . . . . . . . . . 1 . . 4 . . . 5 2 Energy Bleed 5 | . . . . . . . . . . 1 . . . . . . . 1 . . . 3 . Interference 6 | . . . . . . . . . . . . . . . . . . . . . . 6 . Matter Decay 1 | . . . . . . . . . . . . . . . . . . . . . . 1 . Short Circuit 3 | . . . . . . . . . . . . . . . . . . . . . . 1 2 Damage (minor) 2 | . . . . . . . . . . . . 1 . . . . . 1 . . . . . Damage (major) 13 | . . . . . . . . . . . . . . . 1 . . . . . . 9 3 Damage (core) 2 | . . . . . . . . . . . . . . . . . . 1 . . . 1 . Siege Activations 3 | . . . . . . . . . . . . . . . . 1 . 1 . . . 1 . Total Turns 60 | . . . . . . . . . . . . . . . . 7 . 30 . . . 23 . Longest Duration 30 | . . . . . . . . . . . . . . . . 7 . 30 . . . 23 . Martial Activations . | . . . . . . . . . . . . . . . . . . . . . . . . Shielding Activations . | . . . . . . . . . . . . . . . . . . . . . . . . Robots Disrupted . | . . . . . . . . . . . . . . . . . . . . . . . . Combat Hostiles . | . . . . . . . . . . . . . . . . . . . . . . . . Robots Corrupted . | . . . . . . . . . . . . . . . . . . . . . . . . Combat Hostiles . | . . . . . . . . . . . . . . . . . . . . . . . . Parts Fried . | . . . . . . . . . . . . . . . . . . . . . . . . Impact Corruptions . | . . . . . . . . . . . . . . . . . . . . . . . . Robots Melted 1 | . . . . . . . . . . . . . . . . . . . 1 . . . . Combat Hostiles 1 | . . . . . . . . . . . . . . . . . . . 1 . . . . Parts Melted 3 | . . . . . . . . . . . . . . . . . . . 1 . . 2 . Heat Transferred 2359 | . . . . . . . . . . 200 . 37 . . . . . . 407 50 259 1036 370 Parts Sabotaged . | . . . . . . . . . . . . . . . . . . . . . . . . Parts Stolen . | . . . . . . . . . . . . . . . . . . . . . . . . Parts Stripped . | . . . . . . . . . . . . . . . . . . . . . . . . Power Chain Reactions . | . . . . . . . . . . . . . . . . . . . . . . . . Alert | -11 -10 -10 -10 -9 -8 -8 -8 -8 -6 -6 -6 -6 -6 -5 -5 -5 -5 -4 -4 -4 -4 -4 -4 ------- Run | Yrd Mat Min Exi Min Mat Sto Rec Scr Fac Ext Cet Arc Hub Fac Upp Upp Zhi Pro Fac Was Fac Upp Upp Maximum Alert Level 2 | . . . . . . 1 . . . 2 2 . 1 . . . . . 1 . . . . Low Security (%) 81 | 100 100 100 . 100 100 31 100 . 100 59 . 100 84 100 . . . . 96 100 100 . . Level 1 16 | . . . . . . 68 . . . 30 99 . 15 . . . . . 3 . . . . Level 2 1 | . . . . . . . . . . 10 . . . . . . . . . . . . . Level 3 . | . . . . . . . . . . . . . . . . . . . . . . . . Level 4 . | . . . . . . . . . . . . . . . . . . . . . . . . Level 5 . | . . . . . . . . . . . . . . . . . . . . . . . . High Security . | . . . . . . . . . . . . . . . . . . . . . . . . Max Security . | . . . . . . . . . . . . . . . . . . . . . . . . Peak Influence 500 | 5 70 40 . 30 95 279 82 . 143 500 402 173 374 154 . . . . 339 115 8 . . Initial 269 | . . 3 . . . 29 82 . . 70 269 89 21 154 . . . . 46 115 . . . Average 88 | . 17 4 . 3 37 178 18 . 48 216 299 110 121 81 . . . . 32 54 . . . Influence Increases 5699 | 15 186 50 . 30 433 737 54 . 416 1196 360 255 585 35 40 110 . 200 710 . 12 150 125 Destroy 0b10 Robot/C 2700 | . 120 40 . 20 200 340 40 . 200 520 160 80 160 . 40 100 . 160 280 . . 140 100 Destroy 0b10 Robot/NC 190 | 15 10 . . . 20 40 . . 10 15 10 35 15 . . . . . 20 . . . . Destroy Leader 496 | . 34 10 . 10 58 118 . . 44 44 . . 34 . . 10 . 40 74 . . 10 10 Allied During Kill 1121 | . . . . . 2 167 . . . 523 170 115 144 . . . . . . . . . . Successful Hack 172 | . 7 . . . 12 13 14 . 29 38 . . 33 20 . . . . . . 6 . . Disable Machine 435 | . . . . . 30 30 . . 15 30 15 15 90 15 . . . . 195 . . . . Destroy Structure 240 | . . . . . 6 14 . . 13 26 5 10 94 . . . . . 66 . 6 . . Partial Spotted 15 | . . . . . . 15 . . . . . . . . . . . . . . . . . Lose Combat Pursuer 330 | . 15 . . . 105 . . . 105 . . . 15 . . . . . 75 . . . 15 Influence Decreases 5699 | 15 178 58 . 30 362 596 266 . 273 857 619 416 331 342 49 110 . 126 453 331 12 150 125 Entered New Map 1048 | . . 5 . . . 42 130 . . 73 213 134 41 162 4 . . . 28 216 . . . Time Decay 3423 | 15 168 43 . 30 313 334 136 . 233 404 286 222 150 180 45 110 . 126 351 65 12 120 80 Lost Part 429 | . 10 10 . . 30 20 . . 40 140 . . . . . . . . 74 30 . 30 45 Lost Ally 799 | . . . . . 19 200 . . . 240 120 60 140 . . . . . . 20 . . . Squads Dispatched 27 | . 1 . . 2 2 6 . . 2 2 . . 4 . . . . . 5 . 2 . 1 Investigation 4 | . . . . 2 . . . . . 2 . . . . . . . . . . . . . Extermination 3 | . . . . . . . . . . . . . . . . . . . 3 . . . . Reinforcement 13 | . 1 . . . 2 1 . . 2 . . . 4 . . . . . 1 . 2 . . Assault 1 | . . . . . . . . . . . . . . . . . . . . . . . 1 Garrison 6 | . . . . . . 5 . . . . . . . . . . . . 1 . . . . Intercept . | . . . . . . . . . . . . . . . . . . . . . . . . Searches Triggered . | . . . . . . . . . . . . . . . . . . . . . . . . Construction Impeded . | . . . . . . . . . . . . . . . . . . . . . . . . Haulers Reinforced 1 | . . . . . . . . . 1 . . . . . . . . . . . . . . Active Scanning Responses . | . . . . . . . . . . . . . . . . . . . . . . . . Cargo Convoy Interrupts . | . . . . . . . . . . . . . . . . . . . . . . . . Stealth | -11 -10 -10 -10 -9 -8 -8 -8 -8 -6 -6 -6 -6 -6 -5 -5 -5 -5 -4 -4 -4 -4 -4 -4 --------- Run | Yrd Mat Min Exi Min Mat Sto Rec Scr Fac Ext Cet Arc Hub Fac Upp Upp Zhi Pro Fac Was Fac Upp Upp Distress Signals 9 | . . . . . . 3 . . . 3 1 . 1 . . . . . 1 . . . . Communications Jammed . | . . . . . . . . . . . . . . . . . . . . . . . . Distress Signals . | . . . . . . . . . . . . . . . . . . . . . . . . Times Spotted 199 | . 9 5 . 3 22 14 2 . 19 23 7 12 13 . 6 5 . 8 21 5 4 7 14 Peak Tracking Total 9 | . 3 3 . 3 4 4 1 . 7 5 5 1 8 . 4 3 . 4 5 5 6 4 9 Tactical Retreats 16 | . 1 . . . 6 . . . 5 . . . 1 . 1 . . . 1 . . . 1 Traps | -11 -10 -10 -10 -9 -8 -8 -8 -8 -6 -6 -6 -6 -6 -5 -5 -5 -5 -4 -4 -4 -4 -4 -4 ------- Run | Yrd Mat Min Exi Min Mat Sto Rec Scr Fac Ext Cet Arc Hub Fac Upp Upp Zhi Pro Fac Was Fac Upp Upp Traps Triggered 5 | . . . . . . 1 . . 1 . . . . . . . . . 3 . . . . Indirectly 2 | . . . . . . . . . . . . . . . . . . . 2 . . . . Trap Hack Attempts . | . . . . . . . . . . . . . . . . . . . . . . . . Triggered . | . . . . . . . . . . . . . . . . . . . . . . . . Disarmed . | . . . . . . . . . . . . . . . . . . . . . . . . Reprogrammed . | . . . . . . . . . . . . . . . . . . . . . . . . Reused . | . . . . . . . . . . . . . . . . . . . . . . . . Traps Extracted . | . . . . . . . . . . . . . . . . . . . . . . . . Installed . | . . . . . . . . . . . . . . . . . . . . . . . . Triggered . | . . . . . . . . . . . . . . . . . . . . . . . . Machines | -11 -10 -10 -10 -9 -8 -8 -8 -8 -6 -6 -6 -6 -6 -5 -5 -5 -5 -4 -4 -4 -4 -4 -4 ---------- Run | Yrd Mat Min Exi Min Mat Sto Rec Scr Fac Ext Cet Arc Hub Fac Upp Upp Zhi Pro Fac Was Fac Upp Upp Machines Disabled 31 | . . . . . 2 2 . . 1 4 1 1 6 1 . . . . 13 . . . . Max in Single Turn 6 | . . . . . 1 1 . . 1 2 1 1 6 1 . . . . 6 . . . . Garrison Access 2 | . . . . . . 1 . . 1 . . . . . . . . . . . . . . Network Hub 1 | . . . . . . . . . . . . . 1 . . . . . . . . . . Energy Cycler 1 | . . . . . . . . . . 1 . . . . . . . . . . . . . Machines Repaired . | . . . . . . . . . . . . . . . . . . . . . . . . Machines Dismantled . | . . . . . . . . . . . . . . . . . . . . . . . . Machines Sabotaged . | . . . . . . . . . . . . . . . . . . . . . . . . Overloaded Fab Kills . | . . . . . . . . . . . . . . . . . . . . . . . . Hacking | -11 -10 -10 -10 -9 -8 -8 -8 -8 -6 -6 -6 -6 -6 -5 -5 -5 -5 -4 -4 -4 -4 -4 -4 --------- Run | Yrd Mat Min Exi Min Mat Sto Rec Scr Fac Ext Cet Arc Hub Fac Upp Upp Zhi Pro Fac Was Fac Upp Upp Machines Accessed 54 | . 2 . 2 2 2 5 8 . 4 15 1 . 3 2 . 1 4 . 2 . 1 . . Terminals 38 | . 2 . . 1 2 3 6 . 2 15 1 . 3 2 . . . . . . 1 . . Fabricators 1 | . . . . . . . . . . . . . . . . . . . 1 . . . . Repair Stations . | . . . . . . . . . . . . . . . . . . . . . . . . Recycling Units 3 | . . . . . . 1 2 . . . . . . . . . . . . . . . . Scanalyzers 2 | . . . . . . . . . 1 . . . . . . . . . 1 . . . . Garrison Access 2 | . . . . . . 1 . . 1 . . . . . . . . . . . . . . Total Hacks 137 | . 5 . 8 3 5 10 21 . 11 27 3 . 9 9 . 1 17 . 6 . 2 . . Successful 78 | . 1 . 8 2 2 5 9 . 8 17 . . 4 2 . 1 17 . 1 . 1 . . Failed 58 | . 4 . . 1 3 5 12 . 3 10 3 . 5 6 . . . . 5 . 1 . . Catastrophic 8 | . . . . 1 . 1 1 . . 1 1 . 2 . . . . . 1 . . . . Database Lockouts 1 | . . . . . . . . . . . . . . 1 . . . . . . . . . Manual 56 | . . . 1 2 5 7 15 . 3 4 1 . 7 9 . . . . . . 2 . . Terminals 94 | . 5 . . 2 5 6 19 . 7 27 3 . 9 9 . . . . . . 2 . . Fabricators 5 | . . . . . . . . . . . . . . . . . . . 5 . . . . Repair Stations . | . . . . . . . . . . . . . . . . . . . . . . . . Recycling Units 5 | . . . . . . 3 2 . . . . . . . . . . . . . . . . Scanalyzers 4 | . . . . . . . . . 3 . . . . . . . . . 1 . . . . Garrison Access 2 | . . . . . . 1 . . 1 . . . . . . . . . . . . . . Terminal Hacks 61 | . 1 . 8 2 1 2 5 . 3 16 . . 3 1 . 1 17 . . . 1 . . Record 12 | . . . 7 . . . . . . . . . . . . . 5 . . . . . . Part Schematic 8 | . . . . . . . 2 . . 1 . . . 1 . . 4 . . . . . . Robot Schematic 1 | . . . . . . . . . 1 . . . . . . . . . . . . . . Robot Analysis 4 | . . . . . . . . . . . . . . . . . 4 . . . . . . Prototype ID Bank 7 | . . . . . . . . . . 2 . . 1 . . . 4 . . . . . . Open Door 11 | . . . . 1 . . . . . 9 . . . . . 1 . . . . . . . Level Access Points 2 | . . . . . . 1 . . . . . . 1 . . . . . . . . . . Branch Access Points 2 | . 1 . . . . . . . . . . . . . . . . . . . 1 . . Emergency Access Points 1 | . . . . . . . . . . . . . 1 . . . . . . . . . . Registered Components 4 | . . . . . 1 1 . . 1 1 . . . . . . . . . . . . . Zone Layout 8 | . . . . 1 . . 3 . 1 3 . . . . . . . . . . . . . Proto ID Catalog 1 | . . . 1 . . . . . . . . . . . . . . . . . . . . Fabricator Hacks 1 | . . . . . . . . . . . . . . . . . . . 1 . . . . Network Status 1 | . . . . . . . . . . . . . . . . . . . 1 . . . . Repair Station Hacks . | . . . . . . . . . . . . . . . . . . . . . . . . Recycling Unit Hacks 3 | . . . . . . 1 2 . . . . . . . . . . . . . . . . Report Inventory 3 | . . . . . . 1 2 . . . . . . . . . . . . . . . . Scanalyzer 3 | . . . . . . . . . 3 . . . . . . . . . . . . . . Insert Component 1 | . . . . . . . . . 1 . . . . . . . . . . . . . . Analyze 2 | . . . . . . . . . 2 . . . . . . . . . . . . . . Garrison Access Hacks 2 | . . . . . . 1 . . 1 . . . . . . . . . . . . . . Seal Access 2 | . . . . . . 1 . . 1 . . . . . . . . . . . . . . Unauthorized Hacks 8 | . . . . . 1 1 2 . 1 1 . . 1 1 . . . . . . . . . Terminals 8 | . . . . . 1 1 2 . 1 1 . . 1 1 . . . . . . . . . Botnet 8 | . . . . . 1 1 2 . 1 1 . . 1 1 . . . . . . . . . Fabricators . | . . . . . . . . . . . . . . . . . . . . . . . . Repair Stations . | . . . . . . . . . . . . . . . . . . . . . . . . Recycling Units . | . . . . . . . . . . . . . . . . . . . . . . . . Scanalyzers . | . . . . . . . . . . . . . . . . . . . . . . . . Garrison Access . | . . . . . . . . . . . . . . . . . . . . . . . . Data Cores Recovered 2 | . . . . . . 1 . . . . . . 1 . . . . . . . . . . Used . | . . . . . . . . . . . . . . . . . . . . . . . . Hacking Detections 28 | . 1 . . 1 1 4 8 . 2 6 1 . 2 1 . . . . 1 . . . . Full Trace Events 8 | . . . . 1 1 . 4 . . 2 . . . . . . . . . . . . . Feedback Events 1 | . . . . 1 . . . . . . . . . . . . . . . . . . . Corruption 1 | . . . . 1 . . . . . . . . . . . . . . . . . . . Feedback Blocked . | . . . . . . . . . . . . . . . . . . . . . . . . Robot Schematics Acquired 1 | . . . . . . . . . 1 . . . . . . . . . . . . . . Robots Built . | . . . . . . . . . . . . . . . . . . . . . . . . Authchips . | . . . . . . . . . . . . . . . . . . . . . . . . Time . | . . . . . . . . . . . . . . . . . . . . . . . . Total Robot Build Rating . | . . . . . . . . . . . . . . . . . . . . . . . . Part Schematics Acquired 9 | . . . . . . . 2 . 1 1 . . . 1 . . 4 . . . . . . Parts Built . | . . . . . . . . . . . . . . . . . . . . . . . . Authchips . | . . . . . . . . . . . . . . . . . . . . . . . . Time . | . . . . . . . . . . . . . . . . . . . . . . . . Total Part Build Rating . | . . . . . . . . . . . . . . . . . . . . . . . . Parts Repaired . | . . . . . . . . . . . . . . . . . . . . . . . . Time . | . . . . . . . . . . . . . . . . . . . . . . . . Parts Recycled . | . . . . . . . . . . . . . . . . . . . . . . . . Recycled Matter . | . . . . . . . . . . . . . . . . . . . . . . . . Retrieved Matter . | . . . . . . . . . . . . . . . . . . . . . . . . Retrieved Components . | . . . . . . . . . . . . . . . . . . . . . . . . Parts Scanalyzed 1 | . . . . . . . . . 1 . . . . . . . . . . . . . . Part Schematics Acquired 1 | . . . . . . . . . 1 . . . . . . . . . . . . . . Parts Damaged . | . . . . . . . . . . . . . . . . . . . . . . . . Bothacking | -11 -10 -10 -10 -9 -8 -8 -8 -8 -6 -6 -6 -6 -6 -5 -5 -5 -5 -4 -4 -4 -4 -4 -4 ------------ Run | Yrd Mat Min Exi Min Mat Sto Rec Scr Fac Ext Cet Arc Hub Fac Upp Upp Zhi Pro Fac Was Fac Upp Upp Used RIF Installer . | . . . . . . . . . . . . . . . . . . . . . . . . Robots Hacked . | . . . . . . . . . . . . . . . . . . . . . . . . Non-combat . | . . . . . . . . . . . . . . . . . . . . . . . . Combat . | . . . . . . . . . . . . . . . . . . . . . . . . Robot Hacks Applied . | . . . . . . . . . . . . . . . . . . . . . . . . Relay Couplers Released . | . . . . . . . . . . . . . . . . . . . . . . . . Fabnet Peak Effective % . | . . . . . . . . . . . . . . . . . . . . . . . . Robots Rewired 18 | . . . . . . . . . . 18 . . . . . . . . . . . . . Allies Hacked 1 | . . . . . . . . . . 1 . . . . . . . . . . . . . Hacks Repelled . | . . . . . . . . . . . . . . . . . . . . . . . . Allies | -11 -10 -10 -10 -9 -8 -8 -8 -8 -6 -6 -6 -6 -6 -5 -5 -5 -5 -4 -4 -4 -4 -4 -4 -------- Run | Yrd Mat Min Exi Min Mat Sto Rec Scr Fac Ext Cet Arc Hub Fac Upp Upp Zhi Pro Fac Was Fac Upp Upp Total Allies 50 | . . . . 1 . 10 . . . 33 5 . . . . . . . . 1 . . . Largest Group 20 | . . . . 1 1 10 . . . 16 20 14 7 . . . . . . 1 . . . Highest-Rated Group 1007 | . . . . 31 31 173 . . . 568 1007 755 387 . . . . . . 46 . . . Highest-Rated Ally 159 | . . . . 31 31 29 . . . 159 146 146 96 . . . . . . 46 . . . Total Orders 2 | . . . . . . . . . . . . . 2 . . . . . . . . . . STAY 1 | . . . . . . . . . . . . . 1 . . . . . . . . . . FOLLOW 1 | . . . . . . . . . . . . . 1 . . . . . . . . . . Ally Attacks 454 | . . . . . 5 110 . . . 171 80 32 49 . . . . . . 7 . . . Total Damage 9536 | . . . . . 42 1411 . . . 3194 1941 898 1870 . . . . . . 180 . . . Kills 68 | . . . . . 1 15 . . . 25 10 3 14 . . . . . . . . . . Allies Corrupted . | . . . . . . . . . . . . . . . . . . . . . . . . Allies Melted . | . . . . . . . . . . . . . . . . . . . . . . . . Intel | -11 -10 -10 -10 -9 -8 -8 -8 -8 -6 -6 -6 -6 -6 -5 -5 -5 -5 -4 -4 -4 -4 -4 -4 ------- Run | Yrd Mat Min Exi Min Mat Sto Rec Scr Fac Ext Cet Arc Hub Fac Upp Upp Zhi Pro Fac Was Fac Upp Upp Active Infowar (turns) 8142 | 15 543 401 391 272 249 . . . . 573 632 46 . . 533 626 247 401 1296 . 1 800 1116 Optics 1753 | . . . . . 209 . . . . 573 632 46 . . . . . . . . . . 293 Sensors 3714 | . . . . . . . . . . . . . . . 533 626 247 401 . . 1 800 1106 Seismic 1664 | 15 543 401 391 272 42 . . . . . . . . . . . . . . . . . . Decoding 3 | . . . . . . . . . . . . . . . . . . . . . . . 3 Cloaking 2284 | . . . . . . . . . . . . . . . . . . . 1296 . . . 988 Robot Analysis Total 4 | . . . . . . . . . . . . . . . . . 4 . . . . . . Derelict Logs Recovered 6 | . . 1 . . . . . . . . . . . . . 2 . . . . . 1 2 Drone Launches . | . . . . . . . . . . . . . . . . . . . . . . . . Drone Recoveries . | . . . . . . . . . . . . . . . . . . . . . . . . Exploration | -11 -10 -10 -10 -9 -8 -8 -8 -8 -6 -6 -6 -6 -6 -5 -5 -5 -5 -4 -4 -4 -4 -4 -4 ------------- Run | Yrd Mat Min Exi Min Mat Sto Rec Scr Fac Ext Cet Arc Hub Fac Upp Upp Zhi Pro Fac Was Fac Upp Upp Turns Passed 14109 | 196 543 401 391 272 1284 754 599 326 510 970 632 466 309 361 546 626 247 744 1576 169 118 871 1198 Spaces Moved 8605 | 121 270 258 350 184 669 352 540 716 690 739 235 169 144 217 298 367 142 359 783 104 53 432 413 Core 27 | 27 . . . . . . . . . . . . . . . . . . . . . . . Treads 3388 | 94 184 . 1 28 . . . . . . 196 169 144 217 298 367 142 359 783 104 53 233 16 Legs 2229 | . . . . 156 669 352 404 . . 13 39 . . . . . . . . . . 199 397 Wheels 693 | . 86 258 349 . . . . . . . . . . . . . . . . . . . . Hover 2268 | . . . . . . . 136 716 690 726 . . . . . . . . . . . . . Flight . | . . . . . . . . . . . . . . . . . . . . . . . . Fastest Speed 38 | 50 105 130 100 120 120 120 42 42 38 38 120 160 160 160 160 160 160 160 160 160 160 160 190 Average Speed 124 | 135 146 130 110 127 120 122 100 42 38 60 153 160 160 160 160 160 160 160 160 160 160 173 261 Slowest Speed 330 | 160 160 130 160 190 120 190 120 42 42 150 160 160 160 160 160 160 160 160 160 160 160 190 330 Overloaded Moves . | . . . . . . . . . . . . . . . . . . . . . . . . Propulsion Burnouts . | . . . . . . . . . . . . . . . . . . . . . . . . Robots Hopped . | . . . . . . . . . . . . . . . . . . . . . . . . Potential Cave-ins 2 | . . . . . . . . . . . . . . . . . . . 2 . . . . Cave-ins Triggered 1 | . . . . . . . . . . . . . . . . . . . 1 . . . . Teleports 1 | . . . . . . . . . . . . . . . . . . . . . 1 . . Exploration Rate (%) 47 | 7 45 48 69 36 36 41 94 58 19 75 73 84 16 4 49 60 60 59 19 73 3 67 41 Regions Visited 23 Branch Regions 16 Pre-discovered Areas 6 | . . 1 1 1 . . . . . . . . . . . . 3 . . . . . . Known Exits Taken 9 | . 1 . . . . . . . . . . . 1 1 1 1 1 1 . . 1 1 . Unknown Exits Taken 12 | 1 . 1 1 1 1 1 1 1 1 1 1 1 . . . . . . . . . . . Scrap Searched 16 | . . 1 . 1 . . . 6 . . . . . . . 3 . 1 . . . 1 3 Spaces Dug 55 | . . . . . 6 14 . . 13 3 . . . . 3 . . . 16 . . . . Terrain Destroyed 337 | . . . . . 6 14 . . 13 16 1 13 160 1 15 3 . 32 43 . 3 6 11 Melee 45 | . . . . . 6 14 . . 13 3 . . . . . . . . 9 . . . . Projectile 124 | . . . . . . . . . . . 1 13 5 1 15 3 . 32 34 . 3 6 11 AOE 168 | . . . . . . . . . . 13 . . 155 . . . . . . . . . . Terrain Rammed . | . . . . . . . . . . . . . . . . . . . . . . . . Walls Destroyed . | . . . . . . . . . . . . . . . . . . . . . . . . Machines Disabled . | . . . . . . . . . . . . . . . . . . . . . . . . Actions | -11 -10 -10 -10 -9 -8 -8 -8 -8 -6 -6 -6 -6 -6 -5 -5 -5 -5 -4 -4 -4 -4 -4 -4 --------- Run | Yrd Mat Min Exi Min Mat Sto Rec Scr Fac Ext Cet Arc Hub Fac Upp Upp Zhi Pro Fac Was Fac Upp Upp Total 11285 | 145 374 301 355 215 1073 633 595 741 872 1203 500 318 210 228 342 393 163 445 987 106 79 512 495 Wait 1527 | . 70 29 . 6 247 202 27 5 99 215 194 98 58 3 32 10 . 46 106 . 12 51 17 Move 8582 | 120 269 257 349 183 668 351 539 715 689 738 234 168 143 216 297 366 141 358 782 103 52 431 413 Hop . | . . . . . . . . . . . . . . . . . . . . . . . . Pick Up 239 | 12 6 . 2 10 31 16 10 14 20 22 32 14 2 4 . 3 8 . 13 2 . 3 15 Fast Attach 16 | . . . . . 6 . 2 . . . . . . . . . . . . . . . 8 Attach 118 | 7 . 2 . 2 11 8 5 1 10 14 9 3 . 2 1 . 6 2 11 . 9 4 11 Detach 14 | . . . . 2 1 . . 2 1 4 1 . . . . . 2 . . . 1 . . Swap 60 | . 4 . 3 2 8 5 . 2 1 2 8 3 2 2 1 3 3 1 8 . 2 . . Drop 112 | 1 2 . 1 5 32 10 8 2 5 5 14 9 . . . 5 3 . 2 . . 1 7 Fire 250 | 5 23 13 . 5 5 1 . . . 7 8 23 5 1 11 6 . 38 52 1 3 22 21 Melee 208 | . . . . . 64 40 4 . 47 38 . . . . . . . . 12 . . . 3 Ram . | . . . . . . . . . . . . . . . . . . . . . . . . Kick . | . . . . . . . . . . . . . . . . . . . . . . . . Crush . | . . . . . . . . . . . . . . . . . . . . . . . . Escape Stasis 1 | . . . . . . . . . . . . . . . . . . . 1 . . . . Rewire 158 | . . . . . . . . . . 158 . . . . . . . . . . . . . Trap . | . . . . . . . . . . . . . . . . . . . . . . . . Miscellaneous . | . . . . . . . . . . . . . . . . . . . . . . . . Route ------- -11/Scrapyard -10/Materials (discovered 2 exits: *Min x2) -10/Mines -10/Exiles -9/Mines -8/Materials (discovered 2 exits: Fac / *Sto) -8/Storage (discovered 2 exits: Fac / *Rec) -8/Recycling (discovered 2 exits: *Fac / *Scr) -8/Scraptown -6/Factory -6/Extension (discovered 2 exits: *Fac / *Cet) -6/Cetus (discovered 2 exits: *Fac / [*Arc]) -6/Archives (discovered 3 exits: *Fac / *Hub x2) -6/Hub_04(d) (discovered 4 exits: *Fac x4) -5/Factory -5/Upper Caves -5/Upper Caves (discovered 2 exits: *Fac / *Zhi) -5/Zhirov -4/Proximity Caves -4/Factory (discovered 2 exits: *Res x2) -4/Waste -4/Factory (discovered 3 exits: *Upp x2 / Arm) -4/Upper Caves -4/Upper Caves (discovered 1 exit: *Res) History --------- Turn | Location | Event 9 | -11/Scrapyard | Discovered new exit (range 13) 197 | -11/Scrapyard | Entered Materials 317 | -10/Materials | Build established: Mutant 429 | -10/Materials | Identified exit to Mines 740 | -10/Materials | Entered Mines 741 | -10/Mines | Learned location of Storage (-8) 879 | -10/Mines | Assembled infested the area 963 | -10/Mines | Met 8R-AWN 1075 | -10/Mines | Learned location of 1 exit from Materials 1136 | -10/Mines | Discovered new exit (range 5) 1141 | -10/Mines | Entered Exiles 1171 | -10/Exiles | Welcomed by 8R-AWN 1192 | -10/Exiles | Met EX-HEX 1234 | -10/Exiles | Met EX-DEC 1254 | -10/Exiles | Learned location of Zion (-6) 1370 | -10/Exiles | Met EX-BIN 1386 | -10/Exiles | Aligned with FarCom system 1387 | -10/Exiles | Given EX-Vault access code 1414 | -10/Exiles | Opened EX-Vault 1422 | -10/Exiles | Found Lightpack 2.0 1446 | -10/Exiles | Warned to stay clear of 0b10 Research branches 1519 | -10/Exiles | Discovered new exit (range 10) 1532 | -10/Exiles | Left Exiles lab with Lightpack 2.0 1532 | -10/Exiles | Entered Mines 1543 | -9/Mines | Escorted by a lone wolf Derelict 1586 | -9/Mines | Met a Derelict shopkeep closing up shop 1669 | -9/Mines | Received a Rocket Launcher from a helpful Derelict 1782 | -9/Mines | Discovered new exit (range 13) 1804 | -9/Mines | Entered Materials 1804 | -8/Materials | Accompanied by 1 ally 1804 | -8/Materials | Evolved 4 slots: Propulsion x1, Utility x2, Weapon x1 1805 | -8/Materials | Identified exit to Factory 2759 | -8/Materials | Build established: Gladiator 3077 | -8/Materials | Discovered new exit (range 8) 3088 | -8/Materials | Entered Storage 3100 | -8/Storage | Assisted by bots powering up and referring to "LRC-V3" 3229 | -8/Storage | Garrison activated, responded to threat 3369 | -8/Storage | Build established: Commander-Gladiator 3538 | -8/Storage | Garrison activated, responded to threat 3583 | -8/Storage | Lost 5 allies 3840 | -8/Storage | Used back door to open Recycling access 3840 | -8/Storage | Discovered new exit (range 3) 3842 | -8/Storage | Entered Recycling 3847 | -8/Recycling | Build established: Gladiator 4271 | -8/Recycling | Discovered new exit (range 16) 4431 | -8/Recycling | Scanned before Scraplab entrance 4437 | -8/Recycling | Entered Scraplab 4441 | -8/Recycling | Discovered new exit (range 3) 4441 | -8/Recycling | Entered Scraptown 4441 | -8/Scraptown | System corruption cleaned by C-Scrubber 4498 | -8/Scraptown | Turned away by UFD registrar 4504 | -8/Scraptown | Visited Comm Corps 4531 | -8/Scraptown | Visited Awakened 4536 | -8/Scraptown | Received an X-ray algorithm 4537 | -8/Scraptown | Visited Shadow of the Wyrm 4563 | -8/Scraptown | Discovered new exit (range 13) 4673 | -8/Scraptown | Visited Red Mages 4685 | -8/Scraptown | Build established: Hauler-Mutant 4699 | -8/Scraptown | Visited Bundlers 4729 | -8/Scraptown | Visited Cyclists 4737 | -8/Scraptown | Visited TADAMA 4767 | -8/Scraptown | Entered Factory 4767 | -6/Factory | Evolved 4 slots: Power x1, Propulsion x1, Utility x2 5078 | -6/Factory | Build established: Hauler-Gladiator 5238 | -6/Factory | Lost 4 parts (2p1n1u) 5271 | -6/Factory | Discovered new exit (range 15) 5277 | -6/Factory | Entered Extension 5302 | -6/Extension | Rescued a captive Derelict 5303 | -6/Extension | Rescued a captive Derelict 5324 | -6/Extension | Rescued a captive Derelict 5325 | -6/Extension | Rescued a captive Derelict 5352 | -6/Extension | Rescued a captive Derelict 5363 | -6/Extension | Rescued a captive Derelict 5364 | -6/Extension | Rescued a captive Derelict 5379 | -6/Extension | Rescued a captive Derelict 5380 | -6/Extension | Rescued a captive Derelict 5395 | -6/Extension | Rescued a captive Derelict 5471 | -6/Extension | Rescued a captive Derelict 5492 | -6/Extension | Rescued a captive Derelict 5494 | -6/Extension | Rescued a captive Derelict 5575 | -6/Extension | Spotted B-75 Beast 5631 | -6/Extension | Spotted B-75 Beast 5666 | -6/Extension | Allies destroyed B-75 Beast 5674 | -6/Extension | Allies destroyed B-75 Beast 5684 | -6/Extension | Lost 6 parts (2p2n2u) 5699 | -6/Extension | Lost 4 allies 5724 | -6/Extension | Rescued a captive Derelict 5776 | -6/Extension | Lost 5 parts (1n2u2w) 5849 | -6/Extension | Lost 3 allies 5923 | -6/Extension | Energy Cycler disabled 5923 | -6/Extension | Rescued a captive Derelict 5923 | -6/Extension | Rescued a captive Derelict 5924 | -6/Extension | Rescued a captive Derelict 5925 | -6/Extension | Rescued a captive Derelict 5925 | -6/Extension | Rescued a captive Derelict 5941 | -6/Extension | Rescued A7 5949 | -6/Extension | Murdered 3 allies 6023 | -6/Extension | Lost 4 allies 6121 | -6/Extension | Build established: Commander-Mutant 6133 | -6/Extension | Discovered new exit (range 10) 6134 | -6/Extension | Discovered new exit (range 6) 6247 | -6/Extension | Entered Cetus 6247 | -6/Cetus | Accompanied by 16 allies (A7) 6252 | -6/Cetus | Acquired a Cetus Manufacturing Module code from A7 6274 | -6/Cetus | Spotted Cetus Guard 6274 | -6/Cetus | Spotted Cetus Guard 6274 | -6/Cetus | Spotted Cetus Guard 6274 | -6/Cetus | Spotted Cetus Guard 6283 | -6/Cetus | Allies destroyed Cetus Guard 6287 | -6/Cetus | Allies destroyed Cetus Guard 6294 | -6/Cetus | Allies destroyed Cetus Guard 6302 | -6/Cetus | Allies destroyed Cetus Guard 6430 | -6/Cetus | Started Cetus Manufacturing Module 6454 | -6/Cetus | Escorted A7 to Cetus Mainframe 6455 | -6/Cetus | Manufactured an Enhanced Grunt 6480 | -6/Cetus | Manufactured an Enhanced Grunt 6505 | -6/Cetus | Manufactured an Enhanced Grunt 6530 | -6/Cetus | Manufactured an Enhanced Grunt 6555 | -6/Cetus | Manufactured an Enhanced Grunt 6572 | -6/Cetus | Discovered new exit (range 21) 6607 | -6/Cetus | Spotted Cetus Guard 6607 | -6/Cetus | Spotted Cetus Guard 6607 | -6/Cetus | Spotted Cetus Guard 6607 | -6/Cetus | Spotted Cetus Guard 6610 | -6/Cetus | Discovered new exit (range 21) 6616 | -6/Cetus | Build established: Commander-Tank 6625 | -6/Cetus | Found Prototype Device 6628 | -6/Cetus | Allies destroyed Cetus Guard 6632 | -6/Cetus | Allies destroyed Cetus Guard 6637 | -6/Cetus | Allies destroyed Cetus Guard 6643 | -6/Cetus | Allies destroyed Cetus Guard 6662 | -6/Cetus | Met Revision 17 6668 | -6/Cetus | Lost 6 allies 6680 | -6/Cetus | Identified Exp. Thermal Shield 6879 | -6/Cetus | Entered Archives 6879 | -6/Archives | Accompanied by 14 allies (A7) 6884 | -6/Archives | Received a hacking code to weaken MAIN.C 6905 | -6/Archives | Core integrity fell below 50% 6925 | -6/Archives | Lost 3 allies 6937 | -6/Archives | Discovered new exit (range 15) 6985 | -6/Archives | Discovered new exit (range 14) 7120 | -6/Archives | Discovered new exit (range 14) 7345 | -6/Archives | Entered Hub_04(d) 7345 | -6/Hub_04(d) | Accompanied by 10 allies 7379 | -6/Hub_04(d) | Lost 3 allies 7443 | -6/Hub_04(d) | Identified exit to Factory 7513 | -6/Hub_04(d) | Network Hub disabled 7654 | -6/Hub_04(d) | Entered Factory 7654 | -5/Factory | Evolved 2 slots: Power x1, Utility x1 7683 | -5/Factory | Lost 7 allies 7685 | -5/Factory | Discovered new exit (range 7) 7708 | -5/Factory | Identified exit to Upper Caves 7954 | -5/Factory | Build established: Scavenger-Tank 7956 | -5/Factory | Central database locked down 8015 | -5/Factory | Entered Upper Caves 8151 | -5/Upper Caves | Encountered a Warlord checkpoint 8230 | -5/Upper Caves | Ambushed by wild Derelicts 8532 | -5/Upper Caves | Discovered new exit (range 13) 8559 | -5/Upper Caves | Identified exit to Upper Caves 8561 | -5/Upper Caves | Entered another Upper Caves area 8561 | -5/Upper Caves | Discovered new exit (range 10) 8676 | -5/Upper Caves | Learned 4 Factory zone layouts 8733 | -5/Upper Caves | Attracted the attention of an 0b10 checkpoint 8830 | -5/Upper Caves | Learned location of 1 exit from Factory 9164 | -5/Upper Caves | Discovered new exit (range 15) 9185 | -5/Upper Caves | Identified exit to Zhirov 9187 | -5/Upper Caves | Entered Zhirov 9187 | -5/Zhirov | Discovered new exit (range 3) 9216 | -5/Zhirov | Met Zhirov 9245 | -5/Zhirov | Learned location of Quarantine (-3) 9245 | -5/Zhirov | Learned location of Testing (-2) 9245 | -5/Zhirov | Learned location of Command (-1) 9261 | -5/Zhirov | Zhirov requested help retrieving the SGEMP Prototype 9286 | -5/Zhirov | Found Alien Artifact 9287 | -5/Zhirov | Identified Integrated Reactor 9287 | -5/Zhirov | Installed Integrated Reactor, increased core energy generation (+10) 9308 | -5/Zhirov | Found Alien Artifact 9432 | -5/Zhirov | Identified exit to Proximity Caves 9434 | -5/Zhirov | Entered Proximity Caves 9824 | -4/Proximity Caves | Spotted B-86 Titan 9904 | -4/Proximity Caves | Destroyed B-86 Titan 9907 | -4/Proximity Caves | Lost 3 parts (1p1u1w) 10144 | -4/Proximity Caves | Discovered new exit (range 7) 10176 | -4/Proximity Caves | Identified exit to Factory 10178 | -4/Proximity Caves | Entered Factory 10178 | -4/Factory | Evolved 2 slots: Utility x2 10179 | -4/Factory | Identified exit to Research 10617 | -4/Factory | Build established: Hauler-Mutant 10799 | -4/Factory | Discovered exit to Research (range 13) 11401 | -4/Factory | Crushed by falling debris 11465 | -4/Factory | Lost 6 parts (1p2n1u2w) 11584 | -4/Factory | System corruption reached 10% 11615 | -4/Factory | Lost 3 parts (3u) 11686 | -4/Factory | Garrison activated, responded to threat 11754 | -4/Factory | Sucked down chute 11754 | -4/Factory | Entered Waste 11755 | -4/Waste | Met a frightened Derelict 11786 | -4/Waste | Found Prototype Reactor 11795 | -4/Waste | Spotted C-40 Crusher 11818 | -4/Waste | Spotted C-40 Crusher 11828 | -4/Waste | Spotted C-40 Crusher 11832 | -4/Waste | Build established: Hauler-Tank 11836 | -4/Waste | Crushed by Compactor (0 parts destroyed, 1 dropped) 11839 | -4/Waste | Crushed by Compactor (1 part destroyed, 2 dropped) 11857 | -4/Waste | Spotted C-40 Crusher 11869 | -4/Waste | Crushed by Compactor (1 part destroyed) 11895 | -4/Waste | Spotted C-40 Crusher 11900 | -4/Waste | Lost 3 parts (1p1u1w) 11901 | -4/Waste | Discovered new exit (range 14) 11923 | -4/Waste | Entered Factory 11941 | -4/Factory | Identified exit to Upper Caves 11941 | -4/Factory | Identified exit to Armory 12009 | -4/Factory | Identified Transdimensional Reconstructor 12009 | -4/Factory | Warped through subspace 12041 | -4/Factory | Entered Upper Caves 12437 | -4/Upper Caves | Attracted the attention of an 0b10 checkpoint 12498 | -4/Upper Caves | Lost 4 parts (1p1n1u1w) 12576 | -4/Upper Caves | Encountered a Warlord checkpoint 12737 | -4/Upper Caves | Build established: Hauler-Mutant 12884 | -4/Upper Caves | Discovered new exit (range 15) 12910 | -4/Upper Caves | Identified exit to Upper Caves 12912 | -4/Upper Caves | Entered another Upper Caves area 12936 | -4/Upper Caves | Core integrity fell below 50% 13046 | -4/Upper Caves | Found DCF Scrap (14 items) 13181 | -4/Upper Caves | Discovered exit to Research (range 10) 13212 | -4/Upper Caves | Learned 4 Research zone layouts 13235 | -4/Upper Caves | Build established: Scavenger-Mutant 13762 | -4/Upper Caves | Learned Research security intel 14067 | -4/Upper Caves | Attracted the attention of an 0b10 outpost 14102 | -4/Upper Caves | Identified Singularity Reactor 14107 | -4/Upper Caves | Core integrity fell below 20% 14110 | -4/Upper Caves | Destroyed by G-67 Veteran with Plasma Rifle Last Messages --------------- 14098_ Penetrated by Slug. 14098_ Slug penetrates Wall. 14100_ Arm. Medium Treads severed. 14100_ Adv. Hardlight Generator destroyed. 14100_ Imp. Sensor Array destroyed. 14100_ Quantum Rifle destroyed. 14102_ System corrupted: Matter fused (-7). 14102_ Imp. Treads fries itself beyond repair. 14102_ Identified Singularity Reactor. 14102_ Adv. Energy Well severed. 14103_ Critical hit (Burn: +50). 14104_ Singularity Reactor destroyed. 14104_ Wave Gun destroyed. 14105_ Hpw. Shock Rifle destroyed. 14105_ Power Sword severed. 14107_ Imp. Medium Armor Plating fries itself beyond repair. 14107_ L-61 Swordsman destroyed. 14109_ Imp. Treads fries itself beyond repair. 14109_ Slug penetrates Wall. Map ----- +----------------------------------------------------+ | ? ?????????????? ? ????????????????? ? ## # | | ?# #?????????????? ????????????????? ??? # | | ?# #?????????????? #????????????????? ???# | | ?# ##????????????? #????????????????? ???# # | | ## #????###????## ##???????##??????? ???# | | ?????# ##?## # # #?????? ##??????# ??# # | | ??##### ### ????### #??????# ?##### | | ??? # ????## #??????# #???### | | ????? # #???## # ??####?# ###???# | | ??????# # ##?## # #??# ### # ##??# | | #??????# # ### # #??? # #??# | | #?????? ## #????# #??# | | ##???## #??# ##??? #??# | | #?### ##### # # ##### #?# ##?# | | ### # # # ## #??# # ### | | # # ## # #?### | | ## # # # ### # | | ### # # ### # ## # # | | ## #########?### # ### # ### # | | ?# ## #???????????### ##?## ###### # | | ?# ####### #????????????## ##??# ###### # | | # ##??????##???????????#; ##??# #### # | | # #????????????????????# #??####### | | ## #???????????????????## ##????????# | | ?####???????????????????#=/ #?????????## ## | | ????????????????????????#@l #??????????# ##### | | ???????????????????????#%!lg #??????????# ##???? | | ??????????????????????#;g/Y #???##????# #????# | | ????????????????????? g # ;#####"##### #????# | | ???????????????????? ### #????# | | ??????????????????? % ##?# !% #????? | | ??????????????????## #??# ##########????? | | ???????????????????## ???????????????????? | | ????????????????????## # ??????????????????? | | ?????????????????????; ??????????????????? | | ?????????????????????# # # ?#?????????????????? | | ????????????????????? # ##??????????????????? | | ????????????????????? ## ????????????????????? | | ????????????????????? #g?# ????????????????????? | | ???????????????????? ### ?? ????????????????????? | | ???????????????????? ??# ?? #???????????????????? | | ???????????????????? ??# ?? ???????????????????? | | ??????????????????? ???# ?? ???????????????????? | | ???????????????????g???# ??# ???????????????????? | | ???????????????????#???? ???# ???????????????????? | | ???????????????????????? ????#???????????????????? | | ?????????????????????????????????????????????????? | | ?????????????????????????????????????????????????? | | ?????????????????????????????????????????????????? | | ?????????????????????????????????????????????????? | +----------------------------------------------------+ Best States ------------- Heat Dissipation 57 Energy Generation 75 Energy Capacity 1100 Matter Stores 300 Matter Capacity 300 Sight Range 22 Robot Scan Range 16 Terrain Scan Density 10 Cloak Strength 3 Armor Coverage 450 Resistance: KI 25 Resistance: EM 15 Melee Speed Boost 20 Phase Shifting 10 Evasion (%) 57 Melee Accuracy 8 Target Analysis 8 Recoil Reduction 4 Energy Filtering 30 Particle Charging 25 Force Boost 20 Offensive Hacking 24 Authchip Count 9 Item Schematics ----------------- Reflective Plating | -8/Recycling | Hacked Plasma Cutter | -8/Recycling | Hacked Greatsword | -6/Factory | Scanalyzed Hvy. Phase Cannon | -6/Extension | Hacked Huge Storage Unit | -5/Factory | Hacked Assault Drone Bay | -5/Zhirov | Free Exp. Heat Sink | -5/Zhirov | Free Exp. Optical Array | -5/Zhirov | Free Imp. Arc Thrower | -5/Zhirov | Free Robot Schematics ------------------ H-66 Slayer | -6/Factory | Hacked Fabricated ------------ Nothing Repaired ---------- Nothing Alien Tech Used ----------------- Integrated Reactor Transdimensional Reconstructor Achievements -------------- None Challenges ------------ None Game ------ Seed AntimatterOmegaBay Manual? 0 Play Time 02:12:42 Cumulative 203.0 hours Start 2025.08.26 @ 06:31:59 End 2025.08.26 @ 08:50:37 Sessions 1 Manual Loads 0 Difficulty Rogue Special Mode None Game No. 311 Rogue 311 Adventurer 0 Explorer 0 Win Type - Total 4 Types 3/0/1/0/0/0/0/0/0/0 Lore% 79 Gallery% 75 Achievement% 55 Wizard Run 0 Options --------- Layout 1 ASCII 0 Keyboard 0 Movement Mouse Keybinds 0 Fullscreen 1 Font 32/SmallcapsGlow Map View 50x35 Zoom Use 0% Tactical HUD 1 Map Filters NONE Filters NONE Steam 1 RUN: 53118c08-b3dc-419f-9e08-97918a5650a3